bitfinex/quotes_BTCUSD_20241009
["timestamp","ask_amount","ask_price","bid_price","bid_amount"]
[1728499383039,0.79857751,61447.0,61446.0,0.001819]
[1728499383257,0.82208057,61447.0,61446.0,0.001819]
[1728499383475,0.69030704,61447.0,61446.0,0.001819]
[1728499383705,0.28097133,61447.0,61446.0,0.001819]
[1728499383914,0.20327133,61447.0,61446.0,0.001819]
[1728499384137,0.17776827,61447.0,61446.0,0.001819]
[1728499384371,0.20184505,61447.0,61446.0,0.001819]
[1728499384605,0.20184505,61447.0,61446.0,0.16265664]
[1728499385242,0.20184505,61447.0,61446.0,0.16165664]
[1728499386089,0.22734496,61447.0,61446.0,0.16165664]
[1728499386528,0.22734496,61447.0,61446.0,0.000819]
[1728499387645,0.18824091,61447.0,61446.0,0.000819]
[1728499387858,0.21233531,61447.0,61446.0,0.000819]
[1728499388074,0.22739431,61447.0,61446.0,0.000819]
[1728499389132,0.22416361,61447.0,61446.0,0.000819]
[1728499390046,0.1986637,61447.0,61446.0,0.000819]
[1728499390934,0.19869733,61447.0,61446.0,0.000819]
[1728499392311,0.17458223,61447.0,61446.0,0.000819]
[1728499393314,0.20008271,61447.0,61446.0,0.000819]
[1728499393797,0.25029821,61447.0,61446.0,0.000819]
[1728499394248,0.25030396,61447.0,61446.0,0.000819]
[1728499396805,0.04057816,61447.0,61446.0,0.32440064]
[1728499397774,0.04057816,61447.0,61446.0,0.16165664]
[1728499398210,0.20331916,61447.0,61446.0,0.16165664]
[1728499398437,0.22744432,61447.0,61446.0,0.16165664]
[1728499399069,0.06470332,61447.0,61446.0,0.16165664]
[1728499399278,0.06470332,61447.0,61446.0,0.32440064]
[1728499399922,0.03920284,61447.0,61446.0,0.16165664]
[1728499400587,0.04084084,61447.0,61446.0,0.16165664]
[1728499400819,0.05590381,61447.0,61446.0,0.16165664]
[1728499401021,0.04082613,61447.0,61446.0,0.32440064]
[1728499401378,0.04082613,61447.0,61446.0,0.16165664]
[1728499403086,0.06632487,61447.0,61446.0,0.16165664]
[1728499403311,0.06632487,61447.0,61446.0,0.32440064]
[1728499403768,0.06632487,61447.0,61446.0,0.16165664]
[1728499404006,0.02713674,61447.0,61446.0,0.16165664]
[1728499404244,0.06631737,61447.0,61446.0,0.32440064]
[1728499404451,0.06631737,61447.0,61446.0,0.16165664]
[1728499404683,0.22905837,61447.0,61446.0,0.16165664]
[1728499405320,0.06631737,61447.0,61446.0,0.32440064]
[1728499405579,0.06631737,61447.0,61446.0,0.16165664]
[1728499406063,0.06631737,61447.0,61446.0,0.32440064]
[1728499406496,0.04220621,61447.0,61446.0,0.44868669]
[1728499407220,0.04220621,61447.0,61446.0,0.16165664]
[1728499407462,0.20495278,61447.0,61446.0,0.000819]
[1728499407679,0.47055278,61447.0,61446.0,0.000819]
[1728499407958,0.48562739,61447.0,61446.0,0.000819]
[1728499408185,0.47055235,61447.0,61446.0,0.000819]
[1728499410005,0.44505361,61447.0,61446.0,0.000819]
[1728499410269,0.76375847,61447.0,61446.0,0.000819]
[1728499410523,0.94399267,61447.0,61446.0,0.000819]
[1728499410758,1.17714749,61447.0,61446.0,0.000819]
[1728499411240,1.20125322,61447.0,61446.0,0.000819]
[1728499412403,1.20725322,61447.0,61446.0,0.002819]
[1728499412617,0.467265,61438.0,61437.0,0.000819]
[1728499412842,0.72203345,61438.0,61437.0,0.000819]
[1728499413117,0.88287109,61438.0,61437.0,0.000819]
[1728499413360,0.88287109,61438.0,61428.0,0.24397186]
[1728499413361,0.162789,61429.0,61428.0,0.24397186]
[1728499413613,1.05582516,61429.0,61428.0,0.24397186]
[1728499413839,1.05582516,61429.0,61412.0,0.000818]
[1728499413840,0.269792,61428.0,61412.0,0.000818]
[1728499414053,0.85063843,61428.0,61412.0,0.000818]
[1728499414272,0.88978834,61428.0,61412.0,0.000818]
[1728499414489,0.81751375,61428.0,61412.0,0.000818]
[1728499414741,0.97832036,61428.0,61412.0,0.000818]
[1728499414955,1.02646748,61428.0,61412.0,0.000818]
[1728499415385,0.97832036,61428.0,61412.0,0.000818]
[1728499415672,0.97832036,61428.0,61415.0,0.24397186]
[1728499415673,1.05198131,61428.0,61415.0,0.24397186]
[1728499415892,0.2963,61416.0,61415.0,0.24397186]
[1728499416125,0.73796775,61416.0,61415.0,0.24397186]
[1728499416612,0.73796775,61416.0,61412.0,0.000818]
[1728499416613,0.192829,61414.0,61412.0,0.000818]
[1728499416818,0.23197891,61414.0,61412.0,0.000818]
[1728499417032,0.39278552,61414.0,61412.0,0.000818]
[1728499417268,0.49278552,61414.0,61412.0,0.000818]
[1728499417750,0.65362316,61414.0,61412.0,0.000818]
[1728499417986,0.93172316,61414.0,61412.0,0.000818]
[1728499419227,0.94572316,61414.0,61412.0,0.000818]
[1728499419684,0.94972316,61414.0,61413.0,0.00150771]
[1728499420347,0.94572316,61414.0,61413.0,0.00050771]
[1728499420569,0.94972316,61414.0,61413.0,0.00150771]
[1728499421047,0.94947697,61414.0,61413.0,0.00150771]
[1728499421507,0.62607891,61414.0,61413.0,0.00150771]
[1728499421728,0.60307891,61414.0,61413.0,0.00150771]
[1728499421971,0.60407891,61414.0,61413.0,0.00150771]
[1728499422682,0.57898666,61414.0,61413.0,0.00150771]
[1728499422887,0.56498666,61414.0,61413.0,0.00150771]
[1728499423112,0.77431085,61414.0,61413.0,0.00150771]
[1728499423363,0.68831085,61414.0,61413.0,0.00150771]
[1728499423547,0.67031085,61414.0,61413.0,0.00050771]
[1728499423791,0.67431085,61414.0,61413.0,0.00150771]
[1728499424022,0.67431085,61414.0,61413.0,0.00232671]
[1728499424234,0.67031085,61414.0,61413.0,0.00132671]
[1728499424682,0.67431085,61414.0,61413.0,0.00232671]
[1728499425160,0.20740424,61414.0,61413.0,0.00232671]
[1728499425640,0.20728759,61414.0,61413.0,0.00232671]
[1728499426278,0.21728759,61414.0,61413.0,0.00232671]
[1728499427393,0.21723759,61414.0,61413.0,0.00232671]
[1728499428797,0.24523759,61414.0,61413.0,0.00232671]
[1728499429028,0.37568063,61414.0,61413.0,0.00232671]
[1728499429726,0.36073962,61414.0,61413.0,0.00232671]
[1728499429949,0.35016827,61414.0,61413.0,0.00232671]
[1728499431521,0.37409304,61414.0,61413.0,0.00232671]
[1728499431741,0.35016827,61414.0,61413.0,0.00232671]
[1728499432410,0.24365816,61414.0,61413.0,0.00232671]
[1728499432636,0.21972523,61414.0,61413.0,0.00232671]
[1728499433104,0.24700738,61414.0,61413.0,0.00232671]
[1728499433319,0.24525357,61414.0,61413.0,0.00232671]
[1728499433776,0.24625357,61414.0,61413.0,0.00232671]
[1728499434007,0.39464417,61414.0,61413.0,0.00232671]
[1728499434435,0.39564417,61414.0,61413.0,0.00232671]
[1728499435124,0.39464417,61414.0,61413.0,0.00232671]
[1728499436239,0.39628217,61414.0,61413.0,0.00232671]
[1728499437720,0.24689157,61414.0,61413.0,0.00232671]
[1728499437940,0.21889157,61414.0,61413.0,0.00232671]
[1728499438842,0.21489157,61414.0,61413.0,0.00132671]
[1728499439086,0.21489157,61414.0,61413.0,0.00232671]
[1728499439087,0.20489157,61414.0,61413.0,0.00232671]
[1728499439337,0.20894157,61414.0,61413.0,0.00232671]
[1728499439551,0.21901349,61414.0,61413.0,0.00132671]
[1728499439764,0.04218449,61414.0,61413.0,0.16241054]
[1728499439990,0.01666801,61414.0,61413.0,0.16241054]
[1728499440206,0.18749701,61414.0,61413.0,0.16216435]
[1728499440670,0.18349701,61414.0,61413.0,0.16216435]
[1728499441108,0.02066801,61414.0,61413.0,0.32499535]
[1728499441374,0.01666801,61414.0,61413.0,0.16216435]
[1728499441618,0.17949701,61414.0,61413.0,0.16216435]
[1728499441841,0.24629301,61414.0,61413.0,0.00132671]
[1728499442103,0.27529301,61414.0,61413.0,0.00132671]
[1728499442338,0.37604682,61414.0,61413.0,0.00132671]
[1728499442578,0.42431431,61414.0,61413.0,0.00132671]
[1728499442778,0.42606812,61414.0,61413.0,0.00132671]
[1728499442993,0.42806812,61414.0,61413.0,0.00132671]
[1728499443442,0.44106812,61414.0,61413.0,0.00132671]
[1728499443677,0.43931431,61414.0,61413.0,0.00132671]
[1728499444187,0.39803611,61414.0,61413.0,0.00132671]
[1728499444444,0.39603611,61414.0,61413.0,0.00132671]
[1728499444887,0.40003611,61414.0,61413.0,0.00232671]
[1728499445549,0.37451831,61414.0,61413.0,0.00232671]
[1728499445773,0.37551831,61414.0,61413.0,0.00232671]
[1728499445992,0.55094219,61414.0,61413.0,0.00232671]
[1728499446714,0.54918838,61414.0,61413.0,0.00232671]
[1728499448050,0.55018838,61414.0,61413.0,0.00232671]
[1728499448698,0.71102602,61414.0,61413.0,0.00232671]
[1728499448918,0.78987983,61414.0,61413.0,0.00232671]
[1728499449809,0.77687983,61414.0,61413.0,0.00232671]
[1728499450026,0.75136214,61414.0,61413.0,0.00232671]
[1728499450472,0.75136214,61414.0,61413.0,0.00132671]
[1728499450473,0.76536214,61414.0,61413.0,0.00132671]
[1728499450685,0.76136214,61414.0,61413.0,0.00132671]
[1728499450892,0.77536214,61414.0,61413.0,0.00232671]
[1728499451341,0.77536214,61414.0,61413.0,0.00132671]
[1728499451342,0.75965176,61414.0,61413.0,0.00132671]
[1728499451815,0.46366174,61414.0,61413.0,0.00232671]
[1728499452035,0.44966174,61414.0,61413.0,0.00232671]
[1728499452263,0.46366174,61414.0,61413.0,0.00132671]
[1728499452486,0.43078119,61414.0,61413.0,0.00132671]
[1728499452948,0.44478119,61414.0,61413.0,0.00132671]
[1728499453353,0.43078119,61414.0,61413.0,0.00132671]
[1728499453582,0.44378119,61414.0,61413.0,0.00132671]
[1728499454294,0.40519877,61414.0,61413.0,0.00232671]
[1728499454504,0.39012533,61414.0,61413.0,0.00232671]
[1728499454709,0.39012533,61414.0,61413.0,0.00132671]
[1728499454710,0.40520021,61414.0,61413.0,0.00132671]
[1728499454922,0.39120021,61414.0,61413.0,0.00132671]
[1728499455129,0.40320021,61414.0,61413.0,0.00232671]
[1728499455362,0.39020021,61414.0,61413.0,0.00232671]
[1728499455581,0.39020021,61414.0,61413.0,0.00132671]
[1728499455582,0.37820021,61414.0,61413.0,0.00132671]
[1728499455798,0.38920021,61414.0,61413.0,0.00132671]
[1728499456234,0.49342481,61414.0,61413.0,0.00132671]
[1728499456443,0.50342481,61414.0,61413.0,0.00232671]
[1728499457135,0.29920021,61414.0,61413.0,0.00232671]
[1728499457798,0.29920469,61414.0,61413.0,0.00232671]
[1728499459620,0.48866433,61414.0,61413.0,0.00232671]
[1728499459832,0.49130233,61414.0,61413.0,0.00232671]
[1728499460062,0.46578475,61414.0,61413.0,0.00232671]
[1728499460226,0.46478475,61414.0,61413.0,0.00232671]
[1728499460523,0.46478532,61414.0,61413.0,0.00232671]
[1728499461052,0.76355524,61414.0,61413.0,0.00232671]
[1728499461282,0.84325524,61414.0,61413.0,0.00232671]
[1728499461777,0.89119051,61414.0,61413.0,0.00232671]
[1728499462009,0.99119051,61414.0,61413.0,0.00232671]
[1728499462241,1.01515814,61414.0,61413.0,0.00232671]
[1728499462462,1.22393106,61414.0,61413.0,0.00232671]
[1728499463605,1.09309288,61414.0,61413.0,0.00232671]
[1728499463836,1.09309288,61414.0,61412.0,7.1e-07]
[1728499463837,0.16958481,61413.0,61412.0,7.1e-07]
[1728499464030,0.94603029,61413.0,61412.0,7.1e-07]
[1728499464298,0.9715442,61413.0,61412.0,7.1e-07]
[1728499465176,0.81073759,61413.0,61412.0,7.1e-07]
[1728499465597,0.82473759,61413.0,61412.0,7.1e-07]
[1728499466235,0.83873759,61413.0,61412.0,7.1e-07]
[1728499466461,0.82473759,61413.0,61412.0,7.1e-07]
[1728499466874,0.83873759,61413.0,61412.0,7.1e-07]
[1728499467163,0.9995442,61413.0,61412.0,7.1e-07]
[1728499467599,0.99953857,61413.0,61412.0,7.1e-07]
[1728499467814,0.98447143,61413.0,61412.0,7.1e-07]
[1728499468057,0.97153858,61413.0,61412.0,7.1e-07]
[1728499468273,0.98553858,61413.0,61412.0,7.1e-07]
[1728499468487,0.99953858,61413.0,61412.0,7.1e-07]
[1728499470017,0.97401751,61413.0,61412.0,7.1e-07]
[1728499470879,0.97401783,61413.0,61412.0,7.1e-07]
[1728499473053,0.99953909,61413.0,61412.0,7.1e-07]
[1728499474461,0.99953909,61413.0,61395.0,0.24397186]
[1728499474462,0.27605381,61405.0,61390.0,0.24397186]
[1728499474673,0.36314965,61401.0,61390.0,0.24397186]
[1728499474913,0.42823768,61401.0,61390.0,0.24397186]
[1728499475135,0.55911253,61401.0,61390.0,0.24397186]
[1728499475365,0.46273032,61401.0,61390.0,0.24397186]
[1728499475817,0.53810345,61391.0,61390.0,0.24397186]
[1728499476026,0.62619222,61391.0,61390.0,0.24397186]
[1728499476260,0.19265181,61388.0,61387.0,0.000818]
[1728499476487,0.25774058,61388.0,61387.0,0.000818]
[1728499476927,0.41857822,61388.0,61387.0,0.000818]
[1728499477201,0.40275694,61388.0,61387.0,0.000818]
[1728499477432,0.43077292,61388.0,61387.0,0.000818]
[1728499477649,0.43252673,61388.0,61387.0,0.000818]
[1728499477876,0.92333623,61388.0,61387.0,0.000818]
[1728499478097,0.67936437,61388.0,61387.0,0.000818]
[1728499478316,0.70736437,61388.0,61387.0,0.000818]
[1728499479423,0.70661056,61388.0,61387.0,0.000818]
[1728499479881,0.70736437,61388.0,61387.0,0.000818]
[1728499480306,0.69231736,61388.0,61387.0,0.000818]
[1728499480522,0.70733953,61388.0,61387.0,0.000818]
[1728499482757,0.54574808,61388.0,61387.0,0.000818]
[1728499482980,0.73520772,61388.0,61387.0,0.000818]
[1728499483196,0.57340111,61388.0,61387.0,0.000818]
[1728499483408,0.5489084,61388.0,61387.0,0.000818]
[1728499484498,0.5499084,61388.0,61387.0,0.000818]
[1728499484719,0.55066221,61388.0,61387.0,0.000818]
[1728499484930,0.68261012,61388.0,61387.0,0.000818]
[1728499485151,0.68336393,61388.0,61387.0,0.000818]
[1728499485378,0.71036393,61388.0,61387.0,0.000818]
[1728499485800,0.70861012,61388.0,61387.0,0.000818]
[1728499486939,0.69358795,61388.0,61387.0,0.000818]
[1728499487134,0.70859815,61388.0,61387.0,0.000818]
[1728499487797,0.70959815,61388.0,61387.0,0.000818]
[1728499488243,0.70859815,61388.0,61387.0,0.000818]
[1728499488695,0.70959815,61388.0,61387.0,0.000818]
[1728499489540,0.71035196,61388.0,61387.0,0.000818]
[1728499490022,0.68482337,61388.0,61387.0,0.000818]
[1728499493429,0.7198543,61388.0,61387.0,0.000818]
[1728499493638,0.73487972,61388.0,61387.0,0.000818]
[1728499494486,0.89571736,61388.0,61387.0,0.000818]
[1728499494697,1.09561736,61388.0,61387.0,0.000818]
[1728499496455,1.120393,61388.0,61387.0,0.000818]
[1728499496927,1.12039389,61388.0,61387.0,0.000818]
[1728499499741,1.1211477,61388.0,61387.0,0.000818]
[1728499499952,1.09561825,61388.0,61387.0,0.000818]
[1728499500205,1.08059194,61388.0,61387.0,0.000818]
[1728499500427,1.09387428,61388.0,61387.0,0.000818]
[1728499500861,1.09487428,61388.0,61387.0,0.000818]
[1728499501085,1.08059194,61388.0,61387.0,0.000818]
[1728499501309,1.17522814,61388.0,61387.0,0.000818]
[1728499501536,1.16019194,61388.0,61387.0,0.000818]
[1728499501747,1.1752325,61388.0,61387.0,0.000818]
[1728499503334,1.1752325,61388.0,61377.0,0.000819]
[1728499503335,0.26966981,61381.0,61377.0,0.000819]
[1728499503558,0.45913745,61378.0,61377.0,0.000819]
[1728499503811,0.98666984,61378.0,61377.0,0.000819]
[1728499504021,0.98491603,61378.0,61377.0,0.000819]
[1728499504271,0.38155239,61378.0,61377.0,0.000819]
[1728499504736,0.35855239,61378.0,61377.0,0.000819]
[1728499504955,0.20351126,61378.0,61377.0,0.000819]
[1728499505472,0.2536161,61378.0,61377.0,0.000819]
[1728499505691,0.2756161,61378.0,61377.0,0.000819]
[1728499505932,0.2636161,61378.0,61377.0,0.000819]
[1728499506133,0.2666161,61378.0,61377.0,0.000819]
[1728499506350,0.37852911,61378.0,61377.0,0.000819]
[1728499506594,0.38752911,61378.0,61377.0,0.000819]
[1728499506821,0.46792911,61378.0,61377.0,0.000819]
[1728499507756,0.84486675,61378.0,61377.0,0.000819]
[1728499508449,0.84662056,61378.0,61377.0,0.000819]
[1728499509973,0.82108692,61378.0,61377.0,0.000819]
[1728499510185,0.82033311,61378.0,61377.0,0.000819]
[1728499511148,0.43348246,61378.0,61377.0,0.000819]
[1728499511834,0.45148246,61378.0,61377.0,0.000819]
[1728499512052,0.42848246,61378.0,61377.0,0.000819]
[1728499512725,0.32848246,61378.0,61377.0,0.000819]
[1728499514668,0.27837762,61378.0,61377.0,0.083019]
[1728499515535,0.40396668,61378.0,61377.0,0.000819]
[1728499516443,0.42949681,61378.0,61377.0,0.000819]
[1728499516641,0.47965766,61378.0,61377.0,0.000819]
[1728499517437,0.162951,61368.0,61367.0,0.17426519]
[1728499517629,0.162951,61368.0,61367.0,0.49805683]
[1728499517630,0.01505362,61368.0,61367.0,0.49805683]
[1728499517992,0.0405847,61368.0,61367.0,0.49805683]
[1728499519038,0.01505362,61368.0,61367.0,0.49805683]
[1728499519268,0.01505362,61368.0,61367.0,0.49887583]
[1728499519740,0.01705362,61368.0,61367.0,0.49887583]
[1728499519968,0.18000462,61368.0,61367.0,0.33592183]
[1728499520186,0.01705362,61368.0,61367.0,0.49887583]
[1728499520397,0.01705362,61368.0,61367.0,0.33592183]
[1728499520617,0.17800462,61368.0,61367.0,0.33592183]
[1728499520867,0.01505362,61368.0,61367.0,0.33692183]
[1728499521320,0.17800462,61368.0,61367.0,0.33592183]
[1728499521533,0.01505362,61368.0,61367.0,0.33592183]
[1728499521743,0.01505362,61368.0,61367.0,0.49987583]
[1728499521953,0.01505362,61368.0,61367.0,0.50087583]
[1728499522174,0.01505362,61368.0,61367.0,0.49987583]
[1728499522386,0.01605362,61368.0,61367.0,0.49987583]
[1728499522606,0.01605018,61368.0,61367.0,0.49987583]
[1728499522816,0.001,61368.0,61367.0,0.49987583]
[1728499523681,0.082038,61378.0,61377.0,0.162927]
[1728499523908,0.082038,61378.0,61377.0,0.59796464]
[1728499523909,0.09708965,61378.0,61377.0,0.59796464]
[1728499524176,0.09708965,61378.0,61377.0,0.70296464]
[1728499524436,0.24397186,61386.0,61385.0,0.43426564]
[1728499524683,0.40687486,61386.0,61385.0,0.24273764]
[1728499524901,0.325774,61393.0,61385.0,0.24273764]
[1728499525146,0.162901,61387.0,61386.0,0.16083764]
[1728499525391,0.162893,61390.0,61387.0,0.162899]
[1728499525635,0.24397186,61397.0,61385.0,0.0819]
[1728499525636,0.24397186,61397.0,61388.0,0.16083764]
[1728499525878,0.162891,61391.0,61388.0,0.16083764]
[1728499526126,0.02552239,61390.0,61389.0,0.162895]
[1728499526349,0.02552239,61390.0,61389.0,0.32373264]
[1728499527788,0.02552239,61390.0,61389.0,0.59309228]
[1728499528018,0.02552239,61390.0,61389.0,0.40363264]
[1728499528495,0.02552239,61390.0,61389.0,0.40463264]
[1728499528943,0.02552239,61390.0,61389.0,0.40663264]
[1728499530129,0.001638,61400.0,61396.0,0.162876]
[1728499530130,0.164505,61400.0,61396.0,0.162876]
[1728499530357,0.24397186,61397.0,61396.0,0.162876]
[1728499530591,0.164505,61400.0,61396.0,0.162876]
[1728499531593,0.172504,61400.0,61396.0,0.162875]
[1728499531821,0.172504,61400.0,61397.0,0.32371164]
[1728499532054,0.178504,61400.0,61397.0,0.32371164]
[1728499532279,0.015638,61400.0,61397.0,0.32371164]
[1728499532548,0.015638,61400.0,61398.0,0.162871]
[1728499532776,0.170504,61400.0,61399.0,0.16083764]
[1728499533016,0.178504,61400.0,61399.0,0.16083764]
[1728499533250,0.162883,61394.0,61390.0,0.162892]
[1728499533480,0.162883,61394.0,61391.0,0.16083764]
[1728499533906,0.162883,61394.0,61391.0,0.32372664]
[1728499534155,0.162872,61398.0,61391.0,0.16083764]
[1728499534359,0.35289419,61400.0,61392.0,0.00325756]
[1728499534360,0.03315719,61400.0,61392.0,0.00325756]
[1728499534569,0.04115719,61400.0,61399.0,0.162869]
[1728499534793,0.19002319,61400.0,61399.0,0.16083764]
[1728499535684,0.19802319,61400.0,61399.0,0.16083764]
[1728499536114,0.03515719,61400.0,61399.0,0.16083764]
[1728499536381,0.03515719,61400.0,61399.0,0.32370664]
[1728499536609,0.04115719,61400.0,61399.0,0.40320664]
[1728499537331,0.009638,61400.0,61399.0,0.40320664]
[1728499537576,0.001638,61400.0,61399.0,0.40420664]
[1728499537812,0.001638,61400.0,61399.0,0.40520664]
[1728499538069,0.001638,61400.0,61399.0,0.40320664]
[1728499538551,0.002638,61400.0,61399.0,0.40420664]
[1728499539287,0.001638,61400.0,61399.0,0.40320664]
[1728499539517,0.002638,61400.0,61399.0,0.40620664]
[1728499539975,0.001638,61400.0,61399.0,0.40320664]
[1728499540254,0.002638,61400.0,61399.0,0.40820664]
[1728499540483,0.003638,61400.0,61399.0,0.41020664]
[1728499540710,0.003638,61400.0,61399.0,0.41853402]
[1728499542336,0.166504,61400.0,61399.0,0.16783764]
[1728499543320,0.165504,61400.0,61399.0,0.16283764]
[1728499543545,0.165504,61400.0,61399.0,0.16383764]
[1728499543999,0.168504,61400.0,61399.0,0.16383764]
[1728499544215,0.164504,61400.0,61399.0,0.16083764]
[1728499544513,0.169504,61400.0,61399.0,0.16083764]
[1728499544720,0.006638,61400.0,61399.0,0.16083764]
[1728499544953,0.172504,61400.0,61399.0,0.16083764]
[1728499546428,0.19802278,61400.0,61399.0,0.16083764]
[1728499547357,0.325773,61393.0,61387.0,0.162899]
[1728499547574,0.325773,61393.0,61388.0,0.16083764]
[1728499547782,0.162891,61391.0,61388.0,0.16083764]
[1728499548043,0.162894,61390.0,61388.0,0.16083764]
[1728499548272,0.325774,61393.0,61388.0,0.16083764]
[1728499548489,0.162895,61390.0,61388.0,0.16083764]
[1728499549140,0.162895,61389.0,61388.0,0.16083764]
[1728499549601,0.325781,61391.0,61388.0,0.16083764]
[1728499549602,0.162893,61390.0,61388.0,0.16083764]
[1728499550274,0.162893,61390.0,61388.0,0.16383764]
[1728499550275,0.001,61389.0,61388.0,0.16383764]
[1728499550538,0.001,61389.0,61388.0,0.16583764]
[1728499550760,0.325774,61393.0,61388.0,0.16083764]
[1728499550977,0.325777,61392.0,61388.0,0.16083764]
[1728499551203,0.001,61390.0,61388.0,0.16383764]
[1728499551427,0.002,61390.0,61388.0,0.32873464]
[1728499551657,0.164893,61390.0,61388.0,0.16383764]
[1728499551879,0.163893,61390.0,61388.0,0.16383764]
[1728499552108,0.163893,61390.0,61388.0,0.16583764]
[1728499552741,0.001,61390.0,61388.0,0.16583764]
[1728499552965,0.16289,61391.0,61388.0,0.16283764]
[1728499553182,0.326774,61393.0,61388.0,0.16283764]
[1728499553183,0.002,61393.0,61388.0,0.16583764]
[1728499553420,0.162888,61392.0,61388.0,0.16383764]
[1728499553628,0.162885,61393.0,61390.0,0.162892]
[1728499553856,0.162888,61392.0,61391.0,0.16083764]
[1728499555132,0.162888,61392.0,61391.0,0.16283764]
[1728499556253,0.18840973,61392.0,61391.0,0.16283764]
[1728499556462,0.20346585,61392.0,61391.0,0.16283764]
[1728499557131,0.20346585,61392.0,61391.0,0.16583764]
[1728499557993,0.28046585,61392.0,61391.0,0.005]
[1728499558475,0.3306014,61392.0,61391.0,0.005]
[1728499558681,0.28046585,61392.0,61391.0,0.005]
[1728499558889,0.3305942,61392.0,61391.0,0.005]
[1728499559099,0.3305942,61392.0,61391.0,0.002]
[1728499559552,0.162915,61382.0,61379.0,0.162922]
[1728499559795,0.01505612,61381.0,61380.0,0.16083764]
[1728499560064,0.17797212,61381.0,61380.0,0.16083764]
[1728499561140,0.17797212,61381.0,61380.0,0.16283764]
[1728499561396,0.17897212,61381.0,61380.0,0.16283764]
[1728499562673,0.17797212,61381.0,61380.0,0.16083764]
[1728499563084,0.18197212,61381.0,61380.0,0.16083764]
[1728499563303,0.01905612,61381.0,61380.0,0.16083764]
[1728499563516,0.01705612,61381.0,61380.0,0.16083764]
[1728499563971,0.02105612,61381.0,61380.0,0.16083764]
[1728499564178,0.01705612,61381.0,61380.0,0.16083764]
[1728499564388,0.04058227,61381.0,61380.0,0.16083764]
[1728499564607,0.04258227,61381.0,61380.0,0.16083764]
[1728499565045,0.20549827,61381.0,61380.0,0.16083764]
[1728499566427,0.20349827,61381.0,61380.0,0.16083764]
[1728499566662,0.20513627,61381.0,61380.0,0.16083764]
[1728499566893,0.20913627,61381.0,61380.0,0.16083764]
[1728499567142,0.04522027,61381.0,61380.0,0.16083764]
[1728499567372,0.20813627,61381.0,61380.0,0.16083764]
[1728499567608,0.20513627,61381.0,61380.0,0.16083764]
[1728499567836,0.21013627,61381.0,61380.0,0.16083764]
[1728499568045,0.21313627,61381.0,61380.0,0.16083764]
[1728499570037,0.18761012,61381.0,61380.0,0.16083764]
[1728499571120,0.162922,61379.0,61378.0,0.000819]
[1728499571339,0.36743776,61379.0,61378.0,0.000819]
[1728499572491,0.36843776,61379.0,61378.0,0.000819]
[1728499573164,0.37143776,61379.0,61378.0,0.000819]
[1728499573382,0.80884437,61379.0,61378.0,0.000819]
[1728499573625,0.96390977,61379.0,61378.0,0.000819]
[1728499573867,1.12472704,61379.0,61378.0,0.000819]
[1728499574082,1.17275157,61379.0,61378.0,0.000819]
[1728499574531,0.98029193,61379.0,61378.0,0.000819]
[1728499574746,0.86210732,61379.0,61378.0,0.000819]
[1728499574976,0.81408279,61379.0,61378.0,0.000819]
[1728499575219,0.81308279,61379.0,61378.0,0.000819]
[1728499575467,0.85161519,61379.0,61378.0,0.000819]
[1728499575934,1.40306043,61379.0,61378.0,0.000819]
[1728499576170,1.15908857,61379.0,61378.0,0.000819]
[1728499576395,1.17308857,61379.0,61378.0,0.000819]
[1728499576619,1.15908857,61379.0,61378.0,0.000819]
[1728499577051,1.17308857,61379.0,61378.0,0.000819]
[1728499577755,1.17308179,61379.0,61378.0,0.000819]
[1728499578192,1.17308179,61379.0,61367.0,0.000819]
[1728499578193,0.185951,61368.0,61367.0,0.000819]
[1728499578415,0.50964537,61368.0,61367.0,0.000819]
[1728499578867,0.53518113,61368.0,61367.0,0.000819]
[1728499579588,1.04999063,61368.0,61367.0,0.000819]
[1728499579798,0.81301877,61368.0,61367.0,0.000819]
[1728499580030,0.94828962,61368.0,61367.0,0.000819]
[1728499580903,0.93326065,61368.0,61367.0,0.000819]
[1728499581123,0.94128649,61368.0,61367.0,0.000819]
[1728499581363,0.93628649,61368.0,61367.0,0.000819]
[1728499581787,0.95028649,61368.0,61367.0,0.000819]
[1728499582208,0.96628649,61368.0,61367.0,0.000819]
[1728499582424,0.95228649,61368.0,61367.0,0.000819]
[1728499582683,0.93828649,61368.0,61367.0,0.000819]
[1728499582920,0.290956,61366.0,61365.0,0.000819]
[1728499583125,0.93729149,61366.0,61365.0,0.000819]
[1728499583350,0.93629149,61366.0,61365.0,0.000819]
[1728499583562,1.12575113,61366.0,61365.0,0.000819]
[1728499584413,1.12574933,61366.0,61365.0,0.000819]
[1728499584643,1.12774933,61366.0,61365.0,0.000819]
[1728499584893,0.162993,61352.0,61351.0,0.000819]
[1728499585185,0.80414208,61352.0,61351.0,0.000819]
[1728499585609,0.82968394,61352.0,61351.0,0.000819]
[1728499586279,0.85768394,61352.0,61351.0,0.000819]
[1728499586939,0.84368394,61352.0,61351.0,0.000819]
[1728499587173,1.00449055,61352.0,61351.0,0.000819]
[1728499587828,1.01853095,61352.0,61351.0,0.000819]
[1728499588256,0.82407131,61352.0,61351.0,0.000819]
[1728499588519,0.82907131,61352.0,61351.0,0.000819]
[1728499590109,0.80352945,61352.0,61351.0,0.000819]
[1728499590791,0.80452945,61352.0,61351.0,0.000819]
[1728499591036,0.80352945,61352.0,61351.0,0.000819]
[1728499591269,0.80353503,61352.0,61351.0,0.000819]
[1728499591505,0.64054203,61352.0,61350.0,0.00069137]
[1728499591737,0.86727567,61351.0,61350.0,0.00069137]
[1728499592904,0.88127567,61351.0,61350.0,0.00069137]
[1728499593132,0.98241957,61351.0,61350.0,0.00069137]
[1728499595122,0.96841957,61351.0,61350.0,0.00069137]
[1728499595515,0.99641957,61351.0,61350.0,0.00069137]
[1728499595960,0.96841957,61351.0,61350.0,0.00069137]
[1728499596188,0.98241957,61351.0,61350.0,0.00069137]
[1728499596623,0.99641957,61351.0,61350.0,0.00069137]
[1728499597261,0.16302,61342.0,61341.0,0.0005]
[1728499597483,0.22815542,61342.0,61341.0,0.0005]
[1728499597975,0.23862973,61342.0,61341.0,0.0005]
[1728499598188,0.25369336,61342.0,61341.0,0.0005]
[1728499598419,0.76776522,61342.0,61341.0,0.0005]
[1728499598644,0.65679336,61342.0,61341.0,0.0005]
[1728499599505,0.65879336,61342.0,61341.0,0.0005]
[1728499599725,0.65179336,61342.0,61341.0,0.0005]
[1728499600168,0.88422089,61342.0,61341.0,0.0005]
[1728499600385,0.80105564,61342.0,61341.0,0.0005]
[1728499600582,0.62262164,61326.0,61321.0,0.0005]
[1728499600848,0.71075067,61326.0,61321.0,0.0005]
[1728499601077,0.22819103,61326.0,61321.0,0.0005]
[1728499601308,0.47216289,61326.0,61321.0,0.0005]